[Event "CZE-ch U16 Open 2023"]
[Site "Teplice"]
[Date "2023.03.11"]
[Round "1.5"]
[White "Mametev, Artem"]
[Black "Kubin, Tomas Daniel"]
[Result "0-1"]
[ECO "B33"]
[WhiteElo "2074"]
[BlackElo "1936"]
[Annotator "TA"]
[PlyCount "78"]
[EventDate "2023.03.09"]
[EventType "swiss"]
[EventCountry "CZE"]
[SourceTitle "playchess.com"]
[Source "ChessBase"]
[SourceQuality "1"]
[TimeControl "40/5400+30:1800+30"]

{[%evp 30,77,37,29,64,43,57,53,56,32,37,37,34,34,165,120,128,125,251,250,252,243,251,233,235,226,462,0,0,-248,-248,-330,-334,-342,-341,-334,-315,-332,-368,-693,-685,-814,-804,-1803,-1415,-1189,-1097,-1017,-998,-29999]} 1. e4 {[%emt 0:10:45]} c5 {[%emt 0:00:12]} 2. Nf3 {[%emt 0:00:04][%cal Bg1f3,Bf3d4,Bd4b5,Bb5a3,Ba3c2][%mdl 32]} Nc6 {[%emt 0:00:08]} 3. d4 {[%emt 0:00:05]} cxd4 {[%emt 0:00:07]} 4. Nxd4 {[%emt 0:00:03]} Nf6 {[%emt 0:00:24]} 5. Nc3 {[%emt 0:00:09]} e5 {[%emt 0:00:26]} 6. Ndb5 {[%emt 0:00:18]} d6 {[%emt 0:00:08]} 7. Bg5 {[%emt 0:00:04]} a6 {[%emt 0:00:11]} 8. Na3 {[%emt 0:00:05]} b5 {[%emt 0:00:13]} 9. Nd5 {[%emt 0:00:09]} Be7 {[%emt 0:00:11]} 10. Bxf6 {[%emt 0:00:03]} Bxf6 {[%emt 0:00:44]} 11. c4 {[%emt 0:00:02]} b4 {[%emt 0:05:40]} 12. Nc2 {[%emt 0:00:07]} a5 {[%emt 0:01:45]} 13. g3 {[%emt 0:00:07]} Bg5 {[%emt 0:06:39]} 14. Bg2 {[%emt 0:00:19]} O-O {[%emt 0:03:55]} 15. O-O {[%emt 0:00:16]} Rb8 {[%emt 0:11:23]} 16. b3 {[%emt 0:01:51]} f5 {[%emt 0:03:35] B33: Sicilian: Pelikan and Sveshnikov Variations.} 17. exf5 {[%emt 0:00:42]} Bxf5 {[%emt 0:01:10]} 18. Nde3 {[%emt 0:00:52]} Bxe3 {[%emt 0:03:40] White is slightly better.} 19. Nxe3 {[%emt 0:00:16]} ({Reject} 19. Bxc6 Bc5 $11) 19... Nd4 {[%emt 0:04:24]} 20. Nxf5 {[%emt 0:01:57]} Rxf5 {[%emt 0:01:42] [#]} 21. Qd3 $146 {[%emt 0:02:53]} ({Predecessor:} 21. Bd5+ Kh8 22. Be4 Rf6 23. Qd3 Qb6 24. Rad1 Rbf8 25. Qe3 Qc5 26. Kg2 a4 27. h4 {½-½ Yu,B (1180)-Chia,Y (1891) Tanglin op Singapore 2022 (2)}) 21... Qf6 {[%emt 0:12:21]} (21... g6 $14) 22. Be4 {[%emt 0:06:29]} Rh5 {[%emt 0:06:54]} 23. f4 {[%emt 0:02:14]} Qe7 {[%emt 0:02:34]} (23... exf4 $16 24. Rad1 Ne6) 24. Bd5+ {[%emt 0:05:05]} Kh8 {[%emt 0:01:38]} 25. fxe5 {[%emt 0:03:13]} dxe5 {[%emt 0:01:42]} 26. Rae1 {[%emt 0:05:21] [#] Qxd4 would be deadly.} Qd6 {[%emt 0:04:57]} 27. Rf7 {[%emt 0:06:50]} g6 $2 {[%emt 0:04:59]} (27... Rf8 28. Ref1 Rxf7 29. Rxf7 Rh6) 28. Qe3 $2 {[%emt 0:03:17]} (28. g4 $18 Rg5 29. h3) 28... Nc2 $1 $11 {[%emt 0:03:38][%csl LRe1,LRe3]} 29. Qf2 {[%emt 0:31:47]} (29. Qa7 $1 $11 Nxe1 30. c5 Nf3+ 31. Rxf3) 29... Nxe1 $19 {[%emt 0:00:58]} 30. Qxe1 {[%emt 0:00:58]} Rf5 {[%emt 0:01:33]} 31. Rxf5 {[%emt 0:03:31]} gxf5 {[%emt 0:00:13][%mdl 4096] Endgame KQR-KQB} 32. Kg2 {[%emt 0:02:20]} Re8 {[%emt 0:01:53] Strongly threatening ...e4.} 33. Qe3 {[%emt 0:00:32]} e4 {[%emt 0:02:12]} 34. h4 $2 {[%emt 0:02:29] [#]} (34. Bf7 Re7 35. Bd5) 34... Qe5 {[%emt 0:02:28]} 35. h5 {[%emt 0:05:34]} Qc3 {[%emt 0:03:25]} 36. Qc5 {[%emt 0:00:21]} Qf3+ 37. Kh2 Qxh5+ {[%emt 0:00:51]} 38. Kg2 {[%emt 0:01:24]} Qf3+ {[%emt 0:01:30]} 39. Kh3 {[%emt 0:00:09]} Qh1# {Quite a comeback for Black.   Weighted Error Value: White=1.00/Black=0.68} 0-1

[Event "CZE-ch U16 Open 2023"]
[Site "Teplice"]
[Date "2023.03.11"]
[Round "1.6"]
[White "Slaby, Matej"]
[Black "Hozda, Max"]
[Result "1-0"]
[ECO "D02"]
[WhiteElo "1932"]
[BlackElo "2067"]
[Annotator "TA"]
[PlyCount "93"]
[EventDate "2023.03.09"]
[EventType "swiss"]
[EventCountry "CZE"]
[SourceTitle "playchess.com"]
[Source "ChessBase"]
[SourceQuality "1"]
[TimeControl "40/5400+30:1800+30"]

{[%evp 9,93,-37,80,0,-3,-50,-24,-37,-4,0,41,29,20,0,0,0,36,15,26,0,0,0,0,0,0,0,18,16,17,0,0,0,0,0,62,50,92,92,92,92,92,92,92,92,117,102,112,104,154,152,154,156,156,143,145,148,134,131,224,215,203,207,231,136,131,130,243,240,3000,2211,29971,29972,29980,29970,29974,29974,29981,29982,29982,29983,29983,29984,29983,29984,29987,29988]} 1. Nf3 {[%emt 0:00:05]} Nf6 {[%emt 0:00:19]} 2. d4 {[%emt 0:00:09]} d5 {[%emt 0:00:10]} 3. Bf4 {[%emt 0:00:18]} c5 {[%emt 0:00:29]} 4. c3 {[%emt 0:00:35]} Nc6 {[%emt 0:01:02]} 5. dxc5 {[%emt 0:04:46]} a5 {[%emt 0:09:12]} (5... e6 $1 $15) 6. h3 {[%emt 0:06:19] D02: 1 d4 d5 2 Nf3 sidelines, including 2...Nf6 3 g3 and 2...Nf6 3 Bf4.} (6. Na3 $1 $16 {[%cal Ra3b5] Nb5 would be deadly.} Nh5 7. Qd2) 6... e6 $11 {[%emt 0:01:09] [#]} 7. Na3 $146 {[%emt 0:02:10]} (7. e3 $11 {is more appropriate.}) ({Predecessor:} 7. e3 Bxc5 8. Bb5 O-O 9. O-O Qb6 10. Qb3 Ne4 11. Bd3 Qxb3 12. axb3 f6 13. b4 {½-½ Sahidi,S (2406)-Mazur,S (2416) Slovak Hybrid Teams 2021 (5.1)}) 7... Bxc5 $15 {[%emt 0:07:21] Threatens to win with ...Qb6.} 8. Nb5 {[%emt 0:01:35] Nc7+ is the strong threat. Black has an edge.} Ne4 {[%emt 0:02:36][%csl Ge4][%cal Rc5f2]} 9. e3 {[%emt 0:00:41]} Nd6 {[%emt 0:01:22]} 10. Nxd6+ {[%emt 0:04:10]} Bxd6 {[%emt 0:00:16]} 11. Bxd6 {[%emt 0:00:07]} Qxd6 {[%emt 0:00:05]} 12. e4 {[%emt 0:00:17]} Ne7 {[%emt 0:07:39]} 13. Bb5+ {[%emt 0:04:57]} Bd7 {[%emt 0:01:05]} 14. Qa4 {[%emt 0:00:43]} (14. e5 $5 {[%cal Re5d6]} Qc7 15. a4 $11) 14... Bxb5 {[%emt 0:07:56]} 15. Qxb5+ {[%emt 0:00:12]} Qc6 {[%emt 0:01:22]} 16. Nd4 {[%emt 0:01:08][%mdl 64] Pin} Qxb5 {[%emt 0:00:46]} 17. Nxb5 {[%emt 0:00:06] Black must now prevent Nc7+.} O-O {[%emt 0:06:53]} 18. exd5 {[%emt 0:03:30]} Nxd5 {[%emt 0:00:35]} 19. O-O {[%emt 0:00:24]} Rac8 {[%emt 0:06:56]} 20. Rfd1 {[%emt 0:04:36]} Rc5 {[%emt 0:01:06]} 21. a4 {[%emt 0:00:40]} Rfc8 {[%emt 0:02:07] [#]} (21... Rb8 $11) 22. c4 $1 $14 {[%emt 0:09:35]} Nb6 {[%emt 0:14:42]} (22... Nf6 23. b3) 23. b3 {[%emt 0:02:46] aiming for Nd6.} Kf8 {[%emt 0:01:12]} 24. Rd6 {[%emt 0:02:03]} R5c6 {[%emt 0:01:04]} 25. Rad1 {[%emt 0:00:21]} Ke7 {[%emt 0:02:48]} 26. R6d3 {[%emt 0:01:44] White is more active.} Rb8 {[%emt 0:02:40]} 27. Kf1 {[%emt 0:02:59]} Rcc8 {[%emt 0:02:45]} 28. Ke2 {[%emt 0:01:23]} Rd8 {[%emt 0:01:40]} (28... Rc5 $142) 29. Rxd8 $1 $16 {[%emt 0:01:28]} Rxd8 {[%emt 0:00:05]} 30. Rxd8 {[%emt 0:00:07]} Kxd8 {[%emt 0:00:04][%mdl 4096] Endgame KN-KN} 31. Nd6 $1 {[%emt 0:00:16][%csl LRb7,LRf7]} Kc7 {[%emt 0:00:19]} 32. Nxf7 {[%emt 0:00:11]} Nd7 {[%emt 0:00:40]} 33. Kd2 {[%emt 0:01:25]} h6 {[%emt 0:00:51]} (33... Nc5 $16 {keeps fighting.}) 34. Kc3 $18 {[%emt 0:03:15]} Nc5 {[%emt 0:01:15]} 35. f3 {[%emt 0:00:16] Wards off Ne4+} b6 {[%emt 0:00:48]} 36. Ne5 {[%emt 0:01:00]} ({Better is} 36. h4 $18) 36... Kd6 $16 {[%emt 0:01:07]} 37. Nd3 {[%emt 0:01:34]} g5 {[%emt 0:03:48]} (37... e5 $16 38. Nxc5 bxc5) 38. g3 {[%emt 0:07:00]} e5 $2 {[%emt 0:02:32] [#]} (38... Nd7 39. b4 axb4+ 40. Kxb4 Kc6) 39. Nxc5 $1 $18 {[%emt 0:06:07]} bxc5 {[%emt 0:00:07] KP-KP} 40. Kd3 {[%emt 0:00:19] White mates.} h5 {[%emt 0:02:18]} 41. Ke3 {[%emt 0:30:38]} Ke7 {[%emt 0:34:27]} 42. Ke4 {[%emt 0:02:29]} Ke6 {[%emt 0:00:10] [#]} 43. h4 $1 {[%emt 0:00:29]} gxh4 {[%emt 0:00:40]} 44. gxh4 {[%emt 0:00:05]} Kf6 {[%emt 0:00:06]} 45. Kd5 {[%emt 0:01:05]} Kf5 {[%emt 0:00:12]} 46. Kxc5 {[%emt 0:00:09]} Kf4 {[%emt 0:00:08]} 47. Kd5 {[%emt 0:00:08] Weighted Error Value: White=0.10 (very precise) /Black=0.35} 1-0

[Event "CZE-ch U16 Open 2023"]
[Site "Teplice"]
[Date "2023.03.11"]
[Round "1.7"]
[White "Prazak, Daniel"]
[Black "Fizer, Marek"]
[Result "0-1"]
[ECO "B51"]
[WhiteElo "2064"]
[BlackElo "1929"]
[Annotator "TA"]
[PlyCount "56"]
[EventDate "2023.03.09"]
[EventType "swiss"]
[EventCountry "CZE"]
[SourceTitle "playchess.com"]
[Source "ChessBase"]
[SourceQuality "1"]
[TimeControl "40/5400+30:1800+30"]

{[%evp 9,56,14,6,11,34,26,37,30,32,34,31,37,41,22,53,33,49,55,122,35,34,14,22,14,65,0,19,0,11,25,6,-7,-12,-10,7,0,37,31,39,33,49,0,0,-15,216,-15,-12,-30,0]} 1. e4 {[%emt 0:00:03]} c5 {[%emt 0:00:05]} 2. Nf3 {[%emt 0:00:17]} d6 {[%emt 0:00:10]} 3. Bb5+ {[%emt 0:00:10]} Nd7 {[%emt 0:00:15]} 4. a4 {[%emt 0:00:32]} Ngf6 {[%emt 0:00:37]} 5. Nc3 {[%emt 0:00:10]} a6 {[%emt 0:00:32]} 6. Be2 {[%emt 0:00:12] B51: Sicilian: Moscow Variation (3 Bb5+) without 3...Bd7.} g6 {[%emt 0:00:42]} 7. O-O {[%emt 0:01:02]} Bg7 {[%emt 0:00:57]} 8. a5 {[%emt 0:00:54] White is slightly better.} O-O {[%emt 0:02:04]} 9. d3 {[%emt 0:00:25]} b5 {[%emt 0:01:52]} 10. axb6 {[%emt 0:00:15]} Nxb6 {[%emt 0:00:09]} 11. Qd2 {[%emt 0:00:10]} a5 {[%emt 0:05:56]} 12. Qf4 {[%emt 0:08:14] [#]} Bd7 $146 {[%emt 0:02:42]} ({Predecessor:} 12... a4 13. Qh4 h5 14. Ra3 Re8 15. h3 Bd7 16. Ng5 Qc7 17. f4 c4 18. d4 Nh7 {1-0 So,W (2773)-Vokhidov,S (2552) Chess.com Rapid Wk19 Swiss 2022 (1)}) 13. Qh4 {[%emt 0:02:02]} Nh5 {[%emt 0:03:33] [#]} (13... a4 $14) 14. g4 {[%emt 0:16:34]} ({White should try} 14. Ng5 $1 $16) 14... Nf6 $1 $14 {[%emt 0:01:47]} 15. h3 {[%emt 0:01:01]} Bc6 {[%emt 0:09:22]} 16. Bh6 {[%emt 0:04:08]} Qc7 {[%emt 0:09:26]} (16... e5 $11) 17. Ng5 {[%emt 0:06:56]} (17. Nd2 $14) 17... Nbd7 $11 {[%emt 0:21:13]} 18. f4 {[%emt 0:03:04]} Rfb8 {[%emt 0:11:41]} 19. Bxg7 {[%emt 0:13:57]} Kxg7 {[%emt 0:00:17]} 20. b3 {[%emt 0:00:31] [#]} a4 $1 {[%emt 0:03:57]} 21. bxa4 {[%emt 0:12:58]} Rb2 {[%emt 0:02:43]} 22. Rac1 {[%emt 0:01:05]} Qa5 {[%emt 0:08:33]} 23. Nd1 {[%emt 0:02:13]} Ra2 {[%emt 0:00:32] And now ...Qd2 would win.} 24. Ne3 {[%emt 0:05:27]} Qd2 {[%emt 0:04:35] Prevents Rce1.} 25. Nc4 {[%emt 0:01:55]} (25. Qf2 $14) 25... Qc3 {[%emt 0:02:10] Active counter play!} ({Resist} 25... Qxe2 26. Rfe1 Rxc2 27. Rxe2 Rxc1+ 28. Re1 Rxe1+ 29. Qxe1 $16) 26. e5 {[%emt 0:02:56]} Qd4+ $2 {[%emt 0:01:04] [#]} (26... dxe5 $11 {and Black stays safe.} 27. fxe5 Nxe5 28. Rxf6 {[%mdl 64] Remove Defender} exf6 29. Qxh7+ (29. Nxh7 $2 {perishes.} Qd4+ 30. Qf2 Qd5 $19) 29... Kf8) 27. Kh2 $2 {[%emt 0:00:48]} (27. Rf2 $1 $18 h6 28. exf6+ Qxf6 {[%mdl 64] Pin} 29. Nf3) 27... dxe5 {[%emt 0:00:17]} 28. fxe5 {[%emt 0:05:14]} Nxe5 {[%mdl 32768] Weighted Error Value: White=0.27 (precise) /Black=0.24 (precise) . Loss on time!?} 0-1

[Event "CZE-ch U16 Open 2023"]
[Site "Teplice"]
[Date "2023.03.11"]
[Round "1.8"]
[White "Tillmann, Stanislav"]
[Black "Seidl, Jan"]
[Result "1/2-1/2"]
[ECO "B13"]
[WhiteElo "1907"]
[BlackElo "2025"]
[Annotator "TA"]
[PlyCount "73"]
[EventDate "2023.03.09"]
[EventType "swiss"]
[EventCountry "CZE"]
[SourceTitle "playchess.com"]
[Source "ChessBase"]
[SourceQuality "1"]
[TimeControl "40/5400+30:1800+30"]

{[%evp 23,73,0,0,0,-18,-13,0,0,0,0,0,0,0,0,0,0,0,0,0,0,0,0,0,-9,-10,-8,-8,-8,-8,-9,0,-10,0,-8,-11,0,0,-185,-185,-367,-316,-330,-180,-182,-193,-182,0,-131,0,-189,0,-143]} 1. e4 {[%emt 0:00:03]} c6 {[%emt 0:00:04]} 2. d4 {[%emt 0:00:06]} d5 {[%emt 0:00:04]} 3. exd5 {[%emt 0:00:04]} cxd5 {[%emt 0:00:04]} 4. c4 {[%emt 0:00:03]} Nf6 {[%emt 0:00:06]} 5. Nc3 {[%emt 0:00:09]} Nc6 {[%emt 0:00:15]} 6. Nf3 {[%emt 0:00:07]} Bg4 {[%emt 0:03:06]} 7. cxd5 {[%emt 0:00:44]} Nxd5 {[%emt 0:00:05]} 8. Qb3 {[%emt 0:01:03]} Bxf3 {[%emt 0:00:07]} 9. gxf3 {[%emt 0:01:00]} e6 {[%emt 0:00:06]} 10. Qxb7 {[%emt 0:01:14]} Nxd4 {[%emt 0:00:25]} 11. Bb5+ {[%emt 0:00:45]} Nxb5 {[%emt 0:00:07]} 12. Qc6+ {[%emt 0:00:56]} Ke7 {[%emt 0:00:06]} 13. Qc5+ {[%emt 0:00:59] B13: Caro-Kann: Exchange Variation and Panov-Botvinnik Attack.} Nd6 {[%emt 0:00:26] aiming for ...Nxc3.} 14. Nxd5+ {[%emt 0:00:07]} exd5 {[%emt 0:00:05]} 15. O-O {[%emt 0:00:27]} Qb6 {[%emt 0:09:13]} 16. Qxd5 {[%emt 0:03:57]} Qb7 {[%emt 0:04:47]} 17. Qe5+ {[%emt 0:06:31]} Kd7 {[%emt 0:00:13]} 18. Rd1 {[%emt 0:01:14]} Re8 $1 {[%emt 0:27:12]} (18... Qxf3 $2 19. Bf4 Qg4+ 20. Bg3 $18) 19. Qf5+ {[%emt 0:03:47]} Re6 {[%emt 0:00:21]} 20. Qxf7+ {[%emt 0:05:27]} Be7 {[%emt 0:00:12][%cal Oe6e1] ...Re1+! would be deadly.} 21. Bg5 {[%emt 0:01:42][%cal Od1d6] [#] Rxd6+! is the strong threat.} Qb6 $146 {[%emt 0:08:47]} (21... Qxb2 $2 22. Rxd6+ Rxd6 23. Qxe7+ Kc8 24. Rc1+ $18) ({Predecessor:} 21... Re8 22. Rxd6+ Rxd6 23. Re1 Qd5 24. Rxe7+ Rxe7 25. Qxe7+ Kc6 26. Bf4 Rd7 27. Qa3 Kb7 {1-0 Durarbayli,V (2629)-Samunenkov,I (2319) Titled Tuesday intern op 30th Nov blitz 2021 (9)}) 22. Qxg7 {[%emt 0:04:53] Threatens to win with Bxe7.} Re8 {[%emt 0:00:25] Strongly threatening ...Rg6.} 23. Re1 {[%emt 0:07:12]} Qa5 {[%emt 0:07:27][%csl LRe1,LRg5]} 24. Rxe6 {[%emt 0:08:28]} Kxe6 {[%emt 0:00:26]} 25. Bf4 {[%emt 0:10:14][%cal Oa1d1]} Qd5 {[%emt 0:08:39] Repels Rd1} 26. Qxh7 {[%emt 0:07:57]} Kd7 {[%emt 0:02:21]} 27. Re1 {[%emt 0:04:01]} Nf5 {[%emt 0:03:07]} 28. Qh5 {[%emt 0:06:15]} (28. Qg6 $2 Rg8 $19) 28... Rg8+ {[%emt 0:01:03]} 29. Bg3 {[%emt 0:00:07]} Rg5 {[%emt 0:01:02]} 30. Qh8 {[%emt 0:07:18] [#]} (30. Qh7 $1 $11 {and White is okay.}) 30... Nd4 $1 $36 {[%emt 0:04:28][%mdl 2048] Black has strong initiative.} (30... Qxa2 31. Qe5 (31. Qb8 Qa5 $11) 31... Qc4 32. h4 $16) 31. Qh3+ $2 {[%emt 0:03:34]} (31. Kh1 $2 Qxf3+ 32. Kg1 Qd5 $19) (31. Kf1 Nxf3 32. Rc1 Nxh2+ 33. Qxh2) 31... Kd8 {[%emt 0:04:44]} 32. Kf1 {[%emt 0:03:51]} Nxf3 {[%emt 0:02:37]} (32... Rh5 $142 33. Qg4 Nxf3) 33. Rc1 {[%emt 0:01:20][%csl Gc1][%cal Rh3c8]} Nd2+ {[%emt 0:02:47]} (33... Qxa2 $2 34. Qc8#) 34. Kg1 {[%emt 0:00:06][%csl Gc1][%cal Rh3c8] [#]} Nf3+ {[%emt 0:00:52]} (34... Qxa2 $2 35. Qc8#) (34... Bc5 $1 $19 {White must now prevent ...Nf3+.} 35. Qh8+ (35. Rc2 $2 Nf3+ 36. Kg2 Nh4+ {[%mdl 64] Discovered Attack (Double check)} 37. Kg1 Nf3+ 38. Kg2 Nd4+ 39. Kg1 Nf3+ $19) 35... Ke7 36. Qh7+ Kf6 37. Qh8+ Kf7 38. Qh7+ Ke6 39. Qh3+ Kf6 40. Qh8+ Kf7 41. Qh7+ Kf8 42. Qh8+ (42. b4 $2 Bxf2+ {[%mdl 64] Decoy} 43. Kxf2 Rf5+ $19) 42... Kf7) 35. Kf1 $1 $17 {[%emt 0:00:05][%csl Gc1][%cal Rh3c8]} (35. Kh1 $2 Bc5 36. Qg2 (36. Qh8+ $2 Ke7 $19) 36... Ke7 $19) 35... Nd2+ {[%emt 0:01:40]} (35... Qxa2 $2 36. Qc8#) (35... Nxh2+ $17 36. Qxh2 Rh5) 36. Kg1 $19 {[%emt 0:00:07][%csl Gh3][%cal Rc1c8] Really sharp!} Nf3+ {[%emt 0:03:12]} (36... Qxa2 $2 37. Qc8#) ({Black should play} 36... Bc5 $19 {And now ...Nf3+ would win.} 37. Qh8+ (37. Rc2 $2 Nf3+ 38. Kg2 Nh4+ {[%mdl 64] Discovered Attack (Double check)} 39. Kg1 Qd1+ 40. Qf1 Qxc2 $19) 37... Ke7 38. Qh7+ Kd8 39. Qh8+ Ke7 40. Qh7+ Ke8 41. Qh8+ Ke7) 37. Kf1 $1 {[%emt 0:00:06] An exciting game.   Weighted Error Value: White=0.21 (precise) /Black=0.48} ({Don't blunder} 37. Kh1 $2 Bc5 38. Qg2 (38. Qh8+ $2 Ke7 $19) 38... Ke8 $19) 1/2-1/2

[Event "CZE-ch U16 Open 2023"]
[Site "Teplice"]
[Date "2023.03.11"]
[Round "1.9"]
[White "Vilimek, Vit"]
[Black "Pelc, Adam"]
[Result "0-1"]
[ECO "B20"]
[WhiteElo "2018"]
[BlackElo "1871"]
[Annotator "TA"]
[PlyCount "68"]
[EventDate "2023.03.09"]
[EventType "swiss"]
[EventCountry "CZE"]
[SourceTitle "playchess.com"]
[Source "ChessBase"]
[SourceQuality "1"]
[TimeControl "40/5400+30:1800+30"]

{[%evp 12,67,-5,-17,-20,-12,-8,0,33,-27,-15,-38,-9,-19,0,0,-14,-45,162,-16,-55,-52,29,-150,-108,-146,0,-143,0,-152,-132,-147,-100,-119,-93,-102,-87,-259,-251,-285,-201,-215,-222,-341,-318,-450,-396,-1962,-1867,-1818,-1317,-29990,-29990,-29990,-29991,-29991,-29992,-29992]} 1. e4 {[%emt 0:00:02]} c5 {[%emt 0:00:31]} 2. b4 {[%emt 0:00:06]} cxb4 {[%emt 0:01:01]} 3. a3 {[%emt 0:00:02]} e6 {[%emt 0:01:23]} 4. axb4 {[%emt 0:00:01]} Bxb4 {[%emt 0:03:23]} 5. c3 {[%emt 0:00:01]} Be7 {[%emt 0:00:25]} 6. d4 {[%emt 0:00:01]} d6 {[%emt 0:01:25]} 7. Bd3 {[%emt 0:00:06]} Nc6 {[%emt 0:04:25] B20: Sicilian: Unusual White 2nd moves.} 8. f4 {[%emt 0:00:16]} Nf6 {[%emt 0:25:09]} 9. Nf3 {[%emt 0:02:24] [#]} Ng4 $146 {[%emt 0:26:32] The position is equal.} ({Predecessor:} 9... b6 10. O-O Bb7 11. Nbd2 Qc7 12. e5 Nd5 13. Ne4 dxe5 14. fxe5 Na5 15. Bg5 Nxc3 16. Nxc3 Qxc3 17. Bxe7 Kxe7 {0-1 Sokac,M (2265)-Klekowski,M (2466) Speed Chess Q1 blitz 2022 (2)}) 10. Ng5 {[%emt 0:15:56]} (10. e5 $14) 10... e5 $11 {[%emt 0:11:11]} 11. h3 {[%emt 0:15:51]} Nh6 {[%emt 0:03:32]} 12. O-O {[%emt 0:06:04]} exf4 {[%emt 0:02:38]} 13. Nf3 {[%emt 0:05:20]} g5 {[%emt 0:01:39]} 14. h4 {[%emt 0:13:10]} Rg8 {[%emt 0:04:33]} (14... f6 $1 $15 {keeps the upper hand.}) 15. Nh2 $2 {[%emt 0:11:14]} (15. Nxg5 $18 Bxg5 16. hxg5) 15... gxh4 {[%emt 0:06:29]} 16. Qh5 {[%emt 0:03:41]} Bg5 {[%emt 0:01:32]} (16... Qb6 $15 17. Ra2 (17. Qxh6 Bh3 $17) 17... Ng4) 17. Bc4 $2 {[%emt 0:14:43] [#]} ({White should try} 17. Nd2 $1 $11) 17... h3 $1 {[%emt 0:00:59]} 18. Ra2 {[%emt 0:00:03]} (18. Na3 Qf6) 18... Na5 {[%emt 0:00:42]} (18... Qf6 $17 {[%cal Oc6d4] Hoping for ...Nxd4!} 19. Na3 Na5) 19. Bb5+ {[%emt 0:03:52]} (19. Bd5 $1 $11 {was the only way to keep the balance.}) 19... Nc6 {[%emt 0:00:58][%cal Ba5c6,Bc6d8,Bd8e6,Be6f4][%mdl 32]} 20. Bc4 $1 {[%emt 0:06:03] Wards off Be6} Qe7 {[%emt 0:00:53]} 21. Bxf4 {[%emt 0:01:05]} Bxf4 {[%emt 0:00:42]} ({Better is} 21... Bd7 22. Na3 (22. Bxd6 $2 Qxd6 23. Bxf7+ Ke7 $19) 22... Bxf4 23. Rxf4 Rg6) 22. Rxf4 $17 {[%emt 0:00:24]} Rg6 {[%emt 0:00:07]} 23. Raf2 {[%emt 0:00:32] [#]} Nd8 {[%emt 0:01:09]} 24. Qb5+ $2 {[%emt 0:00:54]} (24. Nd2 $17 {is a better defense.}) 24... Bd7 $19 {[%emt 0:00:17]} 25. Qb3 {[%emt 0:00:27]} Rxg2+ {[%emt 0:00:18]} 26. Rxg2 {[%emt 0:00:07]} hxg2 {[%emt 0:00:05]} 27. Qd1 {[%emt 0:00:54]} (27. Nf3 $142) 27... Ne6 {[%emt 0:00:55]} 28. Rf2 {[%emt 0:00:31]} (28. Bxe6 $142 Qxe6 29. Qd3) 28... O-O-O {[%emt 0:00:13] ...Ng5 would be deadly.} 29. Ra2 $2 {[%emt 0:00:34]} (29. Bxe6 Qxe6 30. Qe2) 29... Nf4 {[%emt 0:00:50]} 30. Qf3 {[%emt 0:00:28]} Qh4 {[%emt 0:00:08] ( -> ...Rg8)} 31. Rxa7 {[%emt 0:00:28]} Qe1+ {[%emt 0:00:14] Black mates.} 32. Nf1 {[%emt 0:00:33]} gxf1=Q+ {[%emt 0:00:11]} 33. Bxf1 {[%emt 0:00:34]} Rg8+ {[%emt 0:00:05]} 34. Kh2 {[%emt 0:00:07]} Qh4+ {An exciting game.   Weighted Error Value: White=0.76/Black=0.60} 0-1